bitfinex-derivatives/quotes_BTCF0:USTF0_20250614
["timestamp","ask_amount","ask_price","bid_price","bid_amount"]
[1749915528747,1.59602677,104860.0,104850.0,0.2709326]
[1749915529649,1.68479373,104860.0,104850.0,0.2709326]
[1749915530151,1.59602677,104860.0,104850.0,0.2397326]
[1749915530346,1.62852677,104860.0,104850.0,0.2397326]
[1749915530746,1.65811576,104860.0,104850.0,0.2397326]
[1749915531845,1.65811576,104860.0,104850.0,0.0637]
[1749915532148,1.65811576,104860.0,104850.0,0.26146]
[1749915532350,1.68881576,104860.0,104850.0,0.26146]
[1749915533749,1.68881576,104860.0,104850.0,0.22926]
[1749915534050,1.72001576,104860.0,104850.0,0.19776]
[1749915534550,1.6312488,104860.0,104850.0,0.19776]
[1749915535751,0.1906597,104850.0,104840.0,1.92378255]
[1749915535950,1.38952265,104850.0,104840.0,0.91666255]
[1749915536147,1.38952265,104850.0,104840.0,1.11446255]
[1749915536349,1.33014637,104850.0,104840.0,0.00014255]
[1749915536560,1.42356776,104850.0,104840.0,0.00014255]
[1749915536748,2.43144776,104850.0,104840.0,0.00014255]
[1749915537059,0.1906779,104840.0,104830.0,0.032]
[1749915537354,0.1906961,104830.0,104820.0,0.2617]
[1749915537545,1.22679878,104830.0,104820.0,0.3819]
[1749915537745,0.1907143,104820.0,104810.0,0.73786]
[1749915537946,1.18144386,104820.0,104810.0,0.73786]
[1749915538250,1.2904483,104820.0,104810.0,0.73786]
[1749915538750,0.1907325,104810.0,104800.0,0.19794255]
[1749915538957,1.22502275,104810.0,104800.0,0.45869325]
[1749915539157,1.11118636,104810.0,104800.0,0.49049325]
[1749915539456,1.11118636,104810.0,104800.0,2.15685408]
[1749915539457,0.04131313,104810.0,104800.0,2.15685408]
[1749915539745,0.04131313,104810.0,104800.0,2.17685408]
[1749915539955,0.04131313,104810.0,104800.0,1.81605408]
[1749915539956,0.23204563,104810.0,104800.0,1.81605408]
[1749915540539,0.23204563,104810.0,104800.0,1.81805408]
[1749915540959,0.23204563,104810.0,104800.0,1.88135408]
[1749915541248,0.23204563,104810.0,104800.0,1.29851325]
[1749915541649,0.23204563,104810.0,104800.0,1.50535408]
[1749915542051,0.23204563,104810.0,104800.0,1.86535408]
[1749915542246,0.59284563,104810.0,104800.0,1.50535408]
[1749915542654,0.23204563,104810.0,104800.0,1.50535408]
[1749915542855,0.23204563,104810.0,104800.0,1.30251325]
[1749915543256,0.23204563,104810.0,104800.0,0.29199325]
[1749915543455,0.23204563,104810.0,104800.0,0.45799325]
[1749915543456,0.79568646,104810.0,104800.0,0.45799325]
[1749915543656,0.79568646,104810.0,104800.0,0.19689325]
[1749915543861,0.79568646,104810.0,104800.0,0.45739325]
[1749915543862,0.59284563,104810.0,104800.0,0.45739325]
[1749915547664,0.59284563,104810.0,104800.0,0.25959325]
[1749915547964,0.59284563,104810.0,104800.0,1.27035325]
[1749915556055,0.59284563,104810.0,104800.0,1.47319408]
[1749915556056,0.04131313,104810.0,104800.0,1.47319408]
[1749915556258,0.23204563,104810.0,104800.0,2.16399408]
[1749915556454,0.23204563,104810.0,104800.0,1.80319408]
[1749915556661,0.23204563,104810.0,104800.0,1.60035325]
[1749915556957,0.59284563,104810.0,104800.0,1.59755325]
[1749915557161,0.23204563,104810.0,104800.0,1.38755325]
[1749915557765,0.59284563,104810.0,104800.0,1.38755325]
[1749915557966,0.23204563,104810.0,104800.0,1.38755325]
[1749915558167,0.59284563,104810.0,104800.0,1.38755325]
[1749915558367,0.59284563,104810.0,104800.0,1.38831325]
[1749915559070,0.59284563,104810.0,104800.0,1.59115408]
[1749915559871,0.59284563,104810.0,104800.0,1.38831325]
[1749915560672,0.59284563,104810.0,104800.0,1.26815325]
[1749915561861,0.65714563,104810.0,104800.0,1.26815325]
[1749915562065,0.65714563,104810.0,104800.0,1.26823325]
[1749915562266,0.68894563,104810.0,104800.0,1.26823325]
[1749915562468,0.68894563,104810.0,104800.0,0.45795325]
[1749915562774,0.68894563,104810.0,104800.0,1.26799325]
[1749915565675,0.23204563,104810.0,104800.0,1.47083408]
[1749915565977,0.23204563,104810.0,104800.0,1.79083408]
[1749915568578,0.04131313,104810.0,104800.0,2.15163408]
[1749915570380,0.23204563,104810.0,104800.0,2.15163408]
[1749915570679,0.23204563,104810.0,104800.0,2.15063408]
[1749915571982,0.23204563,104810.0,104800.0,2.15163408]
[1749915575492,0.23204563,104810.0,104800.0,1.14323408]
[1749915575792,0.23204563,104810.0,104800.0,2.15127408]
[1749915576490,0.23204563,104810.0,104800.0,1.79047408]
[1749915577691,0.23204563,104810.0,104800.0,2.15127408]
[1749915577891,0.04131313,104810.0,104800.0,2.15127408]
[1749915578292,0.23204573,104810.0,104800.0,1.94843325]
[1749915578487,0.23204573,104810.0,104800.0,2.15127408]
[1749915578688,0.04131313,104810.0,104800.0,2.15127408]
[1749915580991,0.2383961,104820.0,104810.0,0.1907326]
[1749915581190,0.27844541,104820.0,104810.0,1.64153343]
[1749915582091,0.23076681,104820.0,104810.0,1.64153343]
[1749915582293,0.23076681,104820.0,104810.0,2.00333343]
[1749915582691,0.23076371,104820.0,104810.0,1.8004926]
[1749915582893,0.23076371,104820.0,104810.0,2.00333343]
[1749915583395,0.23076371,104820.0,104810.0,2.00433343]
[1749915592392,0.04004931,104820.0,104810.0,2.00433343]
[1749915592600,0.04004931,104820.0,104810.0,3.00341343]
[1749915595801,0.04004931,104820.0,104810.0,2.8005726]
[1749915596002,0.04004931,104820.0,104810.0,3.00341343]
[1749915596799,0.23076371,104820.0,104810.0,3.00341343]
[1749915597000,0.23076371,104820.0,104810.0,2.00433343]
[1749915597301,0.23076371,104820.0,104810.0,2.64133343]
[1749915597302,0.29256371,104820.0,104810.0,2.64133343]
[1749915597501,0.29256371,104820.0,104810.0,2.61123343]
[1749915598399,0.10184931,104820.0,104810.0,2.61123343]
[1749915598595,0.29256371,104820.0,104810.0,2.97203343]
[1749915598794,0.10184931,104820.0,104810.0,2.7691926]
[1749915598995,0.29256371,104820.0,104810.0,2.61123343]
[1749915599805,0.29256371,104820.0,104810.0,2.61323343]
[1749915600205,0.29256371,104820.0,104810.0,1.55093343]
[1749915600506,0.29256371,104820.0,104810.0,2.55145343]
[1749915601809,0.29256371,104820.0,104810.0,2.55113343]
[1749915602406,0.29256371,104820.0,104810.0,2.3481726]
[1749915602901,0.29256371,104820.0,104810.0,2.3431726]
[1749915603906,0.29256371,104820.0,104810.0,1.3460926]
[1749915604103,0.49540454,104820.0,104810.0,1.1460926]
[1749915604306,0.85620454,104820.0,104810.0,2.1430926]
[1749915604706,0.85620454,104820.0,104810.0,2.0130926]
[1749915605511,0.65436371,104820.0,104810.0,1.1888126]
[1749915606199,0.65436371,104820.0,104810.0,0.1907326]
[1749915606399,0.29356371,104820.0,104810.0,1.1916926]
[1749915607303,0.65436371,104820.0,104810.0,1.1916926]
[1749915607504,0.65436371,104820.0,104810.0,1.1926926]
[1749915608704,0.65336371,104820.0,104810.0,1.1926926]
[1749915608909,0.65336371,104820.0,104810.0,1.1936926]
[1749915619911,0.65336371,104820.0,104810.0,0.3876926]
[1749915620115,0.65336371,104820.0,104810.0,1.1913326]
[1749915622517,0.04004931,104820.0,104810.0,2.08497343]
[1749915622819,0.04004931,104820.0,104810.0,2.14917343]
[1749915623014,0.03990676,104820.0,104810.0,2.26816514]
[1749915623314,0.19084065,104830.0,104820.0,0.1907144]
[1749915623516,0.19084065,104830.0,104820.0,2.08179167]
[1749915624912,0.19184065,104830.0,104820.0,2.08179167]
[1749915625122,0.42029792,104830.0,104820.0,1.34099167]
[1749915625311,0.25394065,104830.0,104820.0,2.0174344]
[1749915625508,0.61474065,104830.0,104820.0,2.0174344]
[1749915626914,0.25394065,104830.0,104820.0,2.570554]
[1749915627118,0.19184065,104830.0,104820.0,2.634954]
[1749915628409,0.00114255,104830.0,104820.0,2.634954]
[1749915628607,0.00114255,104830.0,104820.0,2.635954]
[1749915628812,0.00114255,104830.0,104820.0,2.996754]
[1749915629010,0.00014255,104830.0,104820.0,2.646754]
[1749915629213,0.00014255,104830.0,104820.0,2.967754]
[1749915630022,0.00014255,104830.0,104820.0,2.7646344]
[1749915630219,0.00014255,104830.0,104820.0,2.967754]
[1749915630417,0.19084095,104830.0,104820.0,2.967754]
[1749915631121,0.00014255,104830.0,104820.0,2.967754]
[1749915632120,0.00014255,104830.0,104820.0,2.7646344]
[1749915632422,0.00014255,104830.0,104820.0,2.967754]
[1749915633021,0.00014255,104830.0,104820.0,2.7646344]
[1749915633224,0.00014255,104830.0,104820.0,2.967754]
[1749915634019,0.19084095,104830.0,104820.0,2.967754]
[1749915634325,0.19084095,104830.0,104820.0,2.606554]
[1749915634524,0.19084095,104830.0,104820.0,1.4014344]
[1749915634727,0.19084095,104830.0,104820.0,1.7622344]
[1749915634920,0.19084095,104830.0,104820.0,2.7643144]
[1749915635118,0.23060654,104830.0,104820.0,1.4014344]
[1749915635319,0.23060654,104830.0,104820.0,2.1108944]
[1749915635627,0.68680654,104830.0,104820.0,2.0793944]
[1749915636216,0.68680654,104830.0,104820.0,1.0770344]
[1749915636423,0.68680654,104830.0,104820.0,2.0797144]
[1749915637126,0.68680654,104830.0,104820.0,1.0770344]
[1749915637319,0.88992614,104830.0,104820.0,1.2730744]
[1749915637519,0.88992614,104830.0,104820.0,2.0798344]
[1749915637718,0.88992614,104830.0,104820.0,2.0788344]
[1749915637925,0.89092614,104830.0,104820.0,2.0788344]
[1749915638325,0.68780654,104830.0,104820.0,2.0788344]
[1749915638923,0.68780654,104830.0,104820.0,2.0778344]
[1749915639514,0.99780654,104830.0,104820.0,0.2507144]
[1749915639722,0.95026243,104830.0,104820.0,1.1933566]
[1749915639920,0.95026243,104830.0,104820.0,0.1907166]
[1749915640123,0.95026243,104830.0,104820.0,1.1934366]
[1749915641426,0.74714283,104830.0,104820.0,1.1934366]
[1749915641725,0.95026243,104830.0,104820.0,1.1934366]
[1749915642127,0.74714283,104830.0,104820.0,1.1934366]
[1749915642328,0.95026243,104830.0,104820.0,1.1934366]
[1749915643428,0.74714283,104830.0,104820.0,1.1934366]
[1749915643633,0.95026243,104830.0,104820.0,1.00272]
[1749915643932,0.95026243,104830.0,104820.0,1.1934368]
[1749915644131,1.29026243,104830.0,104820.0,1.1934368]
[1749915644328,0.1907168,104820.0,104810.0,1.17633724]
[1749915644535,0.65598239,104820.0,104810.0,2.20865724]
[1749915644730,0.65598239,104820.0,104810.0,2.17857724]
[1749915645226,0.1907349,104810.0,104800.0,0.00014255]
[1749915645432,1.31985638,104810.0,104800.0,0.00014255]
[1749915645732,1.40886082,104810.0,104800.0,0.00014255]
[1749915646028,1.41886082,104810.0,104800.0,0.00014255]
[1749915646232,1.26985638,104810.0,104800.0,0.00014255]
[1749915646834,1.82985638,104810.0,104800.0,0.00014255]
[1749915647031,1.44985638,104810.0,104800.0,0.00214255]
[1749915647433,1.82985638,104810.0,104800.0,0.00314255]
[1749915647632,1.81742695,104810.0,104800.0,0.00314255]
[1749915647829,1.25430735,104810.0,104800.0,0.00314255]
[1749915648030,1.83742695,104810.0,104800.0,0.00314255]
[1749915648334,1.25430735,104810.0,104800.0,0.00314255]
[1749915648534,1.45742695,104810.0,104800.0,0.00114255]
[1749915648734,1.45742695,104810.0,104800.0,0.00214255]
[1749915649033,1.63430735,104810.0,104800.0,0.00214255]
[1749915649234,1.45742695,104810.0,104800.0,0.00214255]
[1749915649428,1.83742695,104810.0,104800.0,0.19289565]
[1749915649634,1.18740049,104810.0,104800.0,0.19289565]
[1749915649835,1.56740049,104810.0,104800.0,0.19289565]
[1749915650132,1.39052009,104810.0,104800.0,0.19289565]
[1749915650830,1.3980688,104810.0,104800.0,1.19613565]
[1749915651043,1.7380688,104810.0,104800.0,1.19613565]
[1749915651232,1.3980688,104810.0,104800.0,1.19613565]
[1749915652138,1.3980688,104810.0,104800.0,1.19513565]
[1749915652636,1.7180688,104810.0,104800.0,1.19513565]
[1749915652837,1.3980688,104810.0,104800.0,1.19513565]
[1749915653227,1.7180688,104810.0,104800.0,1.19513565]
[1749915653535,1.39152009,104810.0,104800.0,1.19413565]
[1749915653934,1.39918264,104810.0,104800.0,1.19413565]
[1749915655037,1.72918264,104810.0,104800.0,1.19413565]
[1749915655337,1.74918264,104810.0,104800.0,1.19413565]
[1749915655537,1.39918264,104810.0,104800.0,1.19413565]
[1749915656734,1.39918264,104810.0,104800.0,1.00338255]
[1749915657435,1.73918264,104810.0,104800.0,1.00338255]
[1749915657632,1.39918264,104810.0,104800.0,1.00338255]
[1749915657837,1.76918264,104810.0,104800.0,1.00338255]
[1749915658035,1.39918264,104810.0,104800.0,1.00254255]
[1749915659039,1.19606304,104810.0,104800.0,1.00254255]
[1749915659241,1.39918264,104810.0,104800.0,1.00254255]
[1749915661347,1.77918264,104810.0,104800.0,5e-08]
[1749915661537,0.1907713,104790.0,104780.0,0.40609515]
[1749915661744,1.52525649,104790.0,104780.0,0.21530565]
[1749915662039,1.31005137,104790.0,104780.0,0.40609515]
[1749915662244,1.25095649,104790.0,104780.0,0.1966]
[1749915662448,1.25095649,104790.0,104780.0,0.3873895]
[1749915662640,1.25095649,104790.0,104780.0,0.1966]
[1749915663145,1.42783689,104790.0,104780.0,0.3873895]
[1749915663339,1.02830174,104790.0,104780.0,0.5905091]
[1749915663647,1.02830174,104790.0,104780.0,0.6827091]
[1749915663851,1.02830174,104790.0,104780.0,0.4795895]
[1749915664049,1.02830174,104790.0,104780.0,1.3041495]
[1749915664245,1.03130174,104790.0,104780.0,1.3041495]
[1749915664543,1.03130174,104790.0,104780.0,1.3061495]
[1749915664841,1.02830174,104790.0,104780.0,1.3061495]
[1749915665052,0.30670174,104790.0,104780.0,1.3041495]
[1749915665940,0.87062134,104790.0,104780.0,1.3041495]
[1749915666142,0.87062134,104790.0,104780.0,1.92172]
[1749915666344,0.87062134,104790.0,104780.0,0.88676]
[1749915666641,0.93392134,104790.0,104780.0,2.0204695]
[1749915666846,0.73080174,104790.0,104780.0,1.0173495]
[1749915667148,0.93392134,104790.0,104780.0,2.0224695]
[1749915667641,0.93392134,104790.0,104780.0,1.0222]
[1749915667838,0.93392134,104790.0,104780.0,1.2129895]
[1749915668241,0.93392134,104790.0,104780.0,1.0222]
[1749915668542,0.93392134,104790.0,104780.0,1.2129895]
[1749915669249,0.93381983,104790.0,104780.0,1.0222]
[1749915669445,0.73070023,104790.0,104780.0,1.0222]
[1749915669651,0.93381983,104790.0,104780.0,1.0222]
[1749915669852,0.93381983,104790.0,104780.0,1.0212]
[1749915670052,0.93481983,104790.0,104780.0,1.0212]
[1749915670351,0.99391471,104790.0,104780.0,1.0212]
[1749915671045,0.99391471,104790.0,104780.0,1.2119895]
[1749915672550,0.99391471,104790.0,104780.0,1.2737895]
[1749915674442,0.79079511,104790.0,104780.0,1.2737895]
[1749915674649,0.99391471,104790.0,104780.0,1.2737895]
[1749915675049,0.79079511,104790.0,104780.0,1.2737895]
[1749915675451,0.99391471,104790.0,104780.0,1.2737895]
[1749915679255,0.80314341,104790.0,104780.0,1.2737895]
[1749915679457,0.99391471,104790.0,104780.0,1.2737895]
[1749915680058,0.99391471,104790.0,104780.0,0.82456]
[1749915680263,1.33391471,104790.0,104780.0,0.82456]
[1749915680464,1.32391471,104790.0,104780.0,1.0212]
[1749915680666,0.99391471,104790.0,104780.0,1.0212]
[1749915680964,1.08255704,104790.0,104780.0,1.2119895]
[1749915681364,1.08255704,104790.0,104780.0,1.0212]
[1749915682769,0.99391471,104790.0,104780.0,0.82456]
[1749915683067,1.31391471,104790.0,104780.0,1.0212]
[1749915683364,0.1907895,104780.0,104770.0,0.9992732]
[1749915683568,0.89207318,104780.0,104770.0,1.00584]
[1749915683765,0.95116806,104780.0,104770.0,1.1966478]
[1749915684569,0.95116806,104780.0,104770.0,1.00772]
[1749915684768,0.95116806,104780.0,104770.0,1.1985277]
[1749915685262,0.95116806,104780.0,104770.0,1.00772]
[1749915685468,0.95116806,104780.0,104770.0,1.1985277]
[1749915686057,0.74804846,104780.0,104770.0,1.1985277]
[1749915686565,0.95116806,104780.0,104770.0,1.1985277]
[1749915690271,0.74804846,104780.0,104770.0,1.1985277]
[1749915690571,0.95116806,104780.0,104770.0,1.1985277]
[1749915692370,0.74804846,104780.0,104770.0,1.1985277]
[1749915692671,0.95116806,104780.0,104770.0,1.1985278]
[1749915694568,0.74804846,104780.0,104770.0,1.1985278]
[1749915694772,0.95116806,104780.0,104770.0,1.1985278]
[1749915695374,0.95116806,104780.0,104770.0,1.00772]
[1749915695972,0.74804846,104780.0,104770.0,1.00772]
[1749915696176,0.95116806,104780.0,104770.0,1.1985278]
[1749915696772,0.95116806,104780.0,104770.0,1.00772]
[1749915697474,0.95116806,104780.0,104770.0,1.0062]
[1749915697775,0.95116806,104780.0,104770.0,1.1970077]
[1749915699173,0.74804846,104780.0,104770.0,1.1970077]
[1749915699373,0.95116806,104780.0,104770.0,1.1970077]
[1749915700778,0.95116806,104780.0,104770.0,1.0062]
[1749915701173,0.95116806,104780.0,104770.0,0.19936]
[1749915701373,0.95116806,104780.0,104770.0,1.00484]
[1749915701773,0.95116806,104780.0,104770.0,0.002]
[1749915701974,0.95116806,104780.0,104770.0,1.00484]
[1749915702977,0.95116806,104780.0,104770.0,1.00284]
[1749915703278,1.45216806,104780.0,104770.0,1.00284]
[1749915703478,0.1908076,104770.0,104760.0,1.127557]
[1749915703680,0.59127168,104770.0,104760.0,2.289717]
[1749915703880,0.65477168,104770.0,104760.0,2.289717]
[1749915704377,0.66262732,104770.0,104760.0,2.289717]
[1749915704773,0.65477168,104770.0,104760.0,2.290717]
[1749915705177,0.6151076,104770.0,104760.0,2.290717]
[1749915705370,0.5841076,104770.0,104760.0,2.291717]
[1749915705974,0.5516076,104770.0,104760.0,2.291717]
[1749915711481,0.7547272,104770.0,104760.0,2.290717]
[1749915711681,0.8489272,104770.0,104760.0,2.290717]
[1749915712181,0.8489272,104770.0,104760.0,1.289557]
[1749915712381,0.8489272,104770.0,104760.0,2.226037]
[1749915712681,0.8489272,104770.0,104760.0,0.98664]
[1749915712877,0.8489272,104770.0,104760.0,1.98732]
[1749915713086,0.8489272,104770.0,104760.0,2.1781457]
[1749915713278,0.8489272,104770.0,104760.0,2.0151857]
[1749915713584,0.8489272,104770.0,104760.0,1.82436]
[1749915713781,0.8489272,104770.0,104760.0,2.0151857]
[1749915713982,0.8499272,104770.0,104760.0,2.0141857]
[1749915714186,0.8499272,104770.0,104760.0,1.82336]
[1749915715186,0.8499272,104770.0,104760.0,1.82236]
[1749915716588,0.1908257,104760.0,104750.0,0.3018367]
[1749915716789,0.8174453,104760.0,104750.0,1.5590367]
[1749915717287,0.6143257,104760.0,104750.0,1.5590367]
[1749915717689,0.6143257,104760.0,104750.0,1.5592767]
[1749915718187,0.6143257,104760.0,104750.0,1.5612767]
[1749915719990,0.6456257,104760.0,104750.0,1.5612767]
[1749915720792,0.6136257,104760.0,104750.0,0.7669563]
[1749915720989,0.6136257,104760.0,104750.0,0.7998563]
[1749915721288,0.6136257,104760.0,104750.0,0.5967367]
[1749915721489,0.6136257,104760.0,104750.0,1.5973767]
[1749915721892,0.1908257,104760.0,104750.0,2.1612963]
[1749915722390,0.1908257,104760.0,104750.0,1.9581767]
[1749915722595,0.1908257,104760.0,104750.0,2.1612963]
[1749915723090,0.1908257,104760.0,104750.0,1.3552163]
[1749915723287,0.1908257,104760.0,104750.0,2.1608563]
[1749915724293,0.1908257,104760.0,104750.0,1.9577367]
[1749915724493,0.1908257,104760.0,104750.0,1.5969367]
[1749915724695,0.1908257,104760.0,104750.0,1.8000563]
[1749915725898,0.1908257,104760.0,104750.0,2.1608563]
[1749915726094,0.1908257,104760.0,104750.0,1.8000563]
[1749915726492,0.1908257,104760.0,104750.0,1.5969367]
[1749915726796,0.1908257,104760.0,104750.0,1.8000563]
[1749915727493,0.1908257,104760.0,104750.0,1.5969367]
[1749915727699,0.22973957,104760.0,104750.0,1.8000563]
[1749915728399,0.22973957,104760.0,104750.0,1.5969367]
[1749915730302,0.22973957,104760.0,104750.0,1.8000563]
[1749915730897,0.22973957,104760.0,104750.0,1.5969367]
[1749915731297,0.03891387,104760.0,104750.0,1.5969367]
[1749915731499,0.22973927,104760.0,104750.0,1.8000563]
[1749915732398,0.03891387,104760.0,104750.0,1.8000563]
[1749915732603,0.03891387,104760.0,104750.0,2.1608563]
[1749915733100,0.22973927,104760.0,104750.0,2.1608563]
[1749915733494,0.03891387,104760.0,104750.0,2.1608563]
[1749915733696,0.22973927,104760.0,104750.0,2.1608563]
[1749915734001,0.25812797,104800.0,104790.0,0.1907708]
[1749915734200,0.79602113,104810.0,104790.0,2.2006287]
[1749915734393,0.1907526,104800.0,104790.0,1.7818016]
[1749915734594,0.6907526,104800.0,104790.0,1.7818016]
[1749915735200,0.5,104800.0,104790.0,1.7818016]
[1749915735497,0.5,104800.0,104790.0,2.3457212]
[1749915735800,0.505,104800.0,104790.0,2.43506068]
[1749915736008,0.6957526,104800.0,104790.0,2.23194108]
[1749915736202,0.2027526,104800.0,104790.0,2.18516858]
[1749915736502,0.2027526,104800.0,104790.0,2.0958291]
[1749915736703,0.1957526,104800.0,104790.0,2.0958291]
[1749915737003,0.5615526,104800.0,104790.0,1.5250291]
[1749915737301,0.5920526,104800.0,104790.0,1.5250291]
[1749915737704,0.5870526,104800.0,104790.0,1.5250291]
[1749915737898,0.5910526,104800.0,104790.0,1.5250291]
[1749915738105,0.5910526,104800.0,104790.0,1.7150291]
[1749915738500,0.2302526,104800.0,104790.0,1.7150291]
[1749915738803,0.5910526,104800.0,104790.0,1.7150291]
[1749915738993,0.6225526,104800.0,104790.0,1.7150291]
[1749915739504,0.6525526,104800.0,104790.0,1.6824291]
[1749915741002,0.6525526,104800.0,104790.0,0.3693491]
[1749915741201,0.6525526,104800.0,104790.0,1.3699091]
[1749915743398,0.6525526,104800.0,104790.0,0.3693491]
[1749915743604,0.6525526,104800.0,104790.0,1.0938595]
[1749915743902,1.0225526,104800.0,104790.0,1.0938595]
[1749915745010,1.0225526,104800.0,104790.0,1.2895395]
[1749915746508,1.0225526,104800.0,104790.0,0.4841795]
[1749915746710,1.26338047,104800.0,104790.0,1.0471308]
[1749915746910,1.26338047,104800.0,104790.0,0.05]
[1749915747108,1.26338047,104800.0,104790.0,0.85632]
[1749915747411,1.26338047,104800.0,104790.0,0.05]
[1749915747612,1.26338047,104800.0,104790.0,0.85632]
[1749915748206,1.26338047,104800.0,104790.0,1.0470908]
[1749915749014,1.45910047,104800.0,104790.0,1.0470908]
[1749915749516,1.45910047,104800.0,104790.0,1.2670908]
[1749915749712,2.95910047,104800.0,104790.0,1.07568]
[1749915749911,2.95910047,104800.0,104790.0,1.2664508]
[1749915750818,2.95910047,104800.0,104790.0,1.07568]
[1749915751520,2.95910047,104800.0,104790.0,1.2664508]
[1749915751818,2.95910047,104800.0,104790.0,1.07568]
[1749915752015,2.95910047,104800.0,104790.0,1.2664508]
[1749915752221,2.95910047,104800.0,104790.0,1.07568]
[1749915752414,2.74953044,104800.0,104790.0,1.07568]
[1749915752619,2.94028304,104800.0,104790.0,1.07568]
[1749915753522,2.93628304,104800.0,104790.0,1.07568]
[1749915753720,2.93728304,104800.0,104790.0,1.07568]
[1749915753913,2.73416344,104800.0,104790.0,1.07568]
[1749915754213,2.93728304,104800.0,104790.0,1.07568]
[1749915755318,2.93628304,104800.0,104790.0,0.271]
[1749915755514,3.23582664,104800.0,104790.0,0.001]
[1749915755720,1.54010664,104800.0,104790.0,0.001]
[1749915755919,2.63666617,104800.0,104790.0,0.001]
[1749915756119,1.62914617,104800.0,104790.0,0.001]
[1749915756419,2.63674617,104800.0,104790.0,0.001]
[1749915756622,1.22290697,104800.0,104790.0,0.001]
[1749915756819,1.42602657,104800.0,104790.0,0.001]
[1749915757020,1.22190697,104800.0,104790.0,0.001]
[1749915757212,2.34606704,104800.0,104790.0,0.001]
[1749915757413,1.16370704,104800.0,104790.0,0.001]
[1749915757617,2.34634704,104800.0,104790.0,0.001]
[1749915757813,2.14322744,104800.0,104790.0,0.001]
[1749915758020,2.84634704,104800.0,104790.0,0.001]
[1749915758325,2.47662704,104800.0,104790.0,0.001]
[1749915758622,1.46798704,104800.0,104790.0,0.001]
[1749915758820,2.28090704,104800.0,104790.0,0.001]
[1749915759120,1.6907705,104790.0,104780.0,0.23862485]
[1749915759315,2.70779877,104790.0,104780.0,0.37862485]
[1749915759515,2.70779877,104790.0,104780.0,0.33092785]
[1749915759727,2.51207877,104790.0,104780.0,0.33092785]
[1749915759926,2.70779877,104790.0,104780.0,0.33092785]
[1749915760529,2.70779877,104790.0,104780.0,0.14014255]
[1749915760725,2.70779877,104790.0,104780.0,0.33193125]
[1749915760926,2.78290292,104790.0,104780.0,0.14114255]
[1749915761425,2.98602252,104790.0,104780.0,0.14114255]
[1749915762216,2.98602252,104790.0,104780.0,0.00114255]
[1749915763235,2.98702252,104790.0,104780.0,0.00014255]
[1749915763532,2.98902252,104790.0,104780.0,0.00014255]
[1749915763921,3.04824344,104790.0,104780.0,0.00014255]
[1749915764120,1.43416337,104790.0,104780.0,0.00014255]
[1749915764328,0.1908252,104760.0,104750.0,0.5765684]
[1749915764633,0.22853347,104760.0,104750.0,1.129688]
[1749915764824,0.22853347,104760.0,104750.0,0.93463479]
[1749915765527,0.1908252,104760.0,104750.0,0.9285684]
[1749915765729,0.1908252,104760.0,104750.0,1.2893684]
[1749915765930,0.1908252,104760.0,104750.0,1.497488]
[1749915766323,0.1908252,104760.0,104750.0,1.2943684]
[1749915766830,0.1908252,104760.0,104750.0,1.497488]
[1749915767630,0.1908252,104760.0,104750.0,1.2943684]
[1749915767829,0.1908252,104760.0,104750.0,1.497488]
[1749915768029,0.1908252,104760.0,104750.0,1.2943684]
[1749915768228,0.1908252,104760.0,104750.0,1.497488]
[1749915768628,0.1908252,104760.0,104750.0,1.50581796]
[1749915770327,0.19095255,104770.0,104760.0,0.1908251]
[1749915770634,0.22840857,104770.0,104760.0,2.0189847]
[1749915770837,0.03759857,104770.0,104760.0,2.0189847]
[1749915771031,0.22840547,104770.0,104760.0,2.0189847]
[1749915771834,0.22840547,104770.0,104760.0,1.4391847]
[1749915772134,0.22840547,104770.0,104760.0,1.9829847]
[1749915772323,0.22840547,104770.0,104760.0,1.4190651]
[1749915772527,0.22840547,104770.0,104760.0,0.7604251]
[1749915772727,0.22840547,104770.0,104760.0,1.7753851]
[1749915773428,0.22840547,104770.0,104760.0,1.4145851]
[1749915774334,0.22840547,104770.0,104760.0,1.6177047]
[1749915774635,0.22840547,104770.0,104760.0,1.4145851]
[1749915774931,0.22840547,104770.0,104760.0,1.6177047]
[1749915776938,0.22840547,104770.0,104760.0,1.4777047]
[1749915777139,0.22840547,104770.0,104760.0,1.7877047]
[1749915778742,0.22840547,104770.0,104760.0,1.5845851]
[1749915778936,0.22840547,104770.0,104760.0,1.7877047]
[1749915779644,0.22840547,104770.0,104760.0,1.5845851]
[1749915779839,0.22840547,104770.0,104760.0,1.7877047]
[1749915780849,0.22840547,104770.0,104760.0,1.5845851]
[1749915781051,0.22840547,104770.0,104760.0,0.5696251]
[1749915781254,0.58920547,104770.0,104760.0,1.5890251]
[1749915781449,0.29160547,104770.0,104760.0,1.3990251]
[1749915781752,0.65240547,104770.0,104760.0,1.3667251]
[1749915781947,0.68440547,104770.0,104760.0,1.3342251]
[1749915782655,0.88752507,104770.0,104760.0,1.3342251]
[1749915783152,0.68440547,104770.0,104760.0,1.3342251]
[1749915783350,0.68440547,104770.0,104760.0,1.2142251]
[1749915785555,0.32360547,104770.0,104760.0,1.2142251]
[1749915786458,0.68440547,104770.0,104760.0,1.2142251]
[1749915786659,0.68440547,104770.0,104760.0,0.1948251]
[1749915786859,0.68440547,104770.0,104760.0,1.2154251]
[1749915790559,0.68440547,104770.0,104760.0,1.2142651]
[1749915794560,0.32360547,104770.0,104760.0,1.2142651]
[1749915795859,0.68440547,104770.0,104760.0,1.2142651]
[1749915796358,0.68476931,104770.0,104760.0,1.2142651]
[1749915797057,0.68476931,104770.0,104760.0,1.2442651]
[1749915801262,0.88788891,104770.0,104760.0,1.02244]
[1749915801563,0.94710346,104770.0,104760.0,1.2132651]
[1749915802063,0.74398386,104770.0,104760.0,1.2132651]
[1749915802557,0.74398386,104770.0,104760.0,0.1948251]
[1749915802762,0.74398386,104770.0,104760.0,1.2137451]
[1749915804154,0.94710346,104770.0,104760.0,1.2137451]
[1749915805260,0.2385582,104750.0,104740.0,0.0894066]
[1749915805463,1.81125719,104750.0,104740.0,0.01321605]
[1749915805765,1.70575901,104750.0,104740.0,0.01321605]
[1749915805952,1.70775861,104750.0,104740.0,0.01321605]
[1749915806654,0.1908616,104740.0,104730.0,1.3203077]
[1749915806862,0.65438146,104740.0,104730.0,0.08704934]
[1749915807163,1.22670527,104740.0,104730.0,0.01344934]
[1749915807362,1.28670527,104740.0,104730.0,0.01344934]
[1749915807963,0.1908779,104730.0,104720.0,1.3045747]
[1749915808261,0.1908959,104720.0,104710.0,1.2567526]
[1749915808465,0.78642858,104720.0,104710.0,1.6281297]
[1749915808658,0.78642858,104720.0,104710.0,1.6919297]
[1749915808857,0.58330898,104720.0,104710.0,1.6919297]
[1749915809262,0.64520898,104720.0,104710.0,1.6919297]
[1749915809464,0.64520898,104720.0,104710.0,0.6738097]
[1749915809666,0.84832858,104720.0,104710.0,0.515554]
[1749915809966,1.17832858,104720.0,104710.0,1.332034]
[1749915810158,1.20832858,104720.0,104710.0,1.332034]